[Event "Titled Tuesday Blitz March 14 Late 2023"]
[White "Makhnev, Denis"]
[Black "Christiansen, Johan-Sebastian"]
[WhiteFideId "13707647"]
[BlackFideId "1512668"]
[WhiteElo "2525"]
[BlackElo "2517"]
[Result "1-0"]
[Round "10"]
[TimeControl "180+2"]
[Date "2023.03.14"]
[WhiteClock "0:00:17"]
[BlackClock "0:00:01"]

1. d4 {[%clk 0:03:00]}  Nf6 {[%clk 0:03:00]} 2. c4 {[%clk 0:03:01]}  c5 {[%clk 0:03:00]} 3. d5 {[%clk 0:03:01]}  b5 {[%clk 0:03:01]} 4. cxb5 {[%clk 0:03:02]}  a6 {[%clk 0:03:02]} 5. e3 {[%clk 0:03:02]}  e6 {[%clk 0:03:02]} 6. Nc3 {[%clk 0:03:02]}  exd5 {[%clk 0:03:02]} 7. Nxd5 {[%clk 0:02:55]}  Be7 {[%clk 0:03:02]} 8. b6 {[%clk 0:02:07]}  Nxd5 {[%clk 0:03:02]} 9. Qxd5 {[%clk 0:02:08]}  Nc6 {[%clk 0:03:02]} 10. Bc4 {[%clk 0:02:09]}  O-O {[%clk 0:03:02]} 11. Nf3 {[%clk 0:02:09]}  Qxb6 {[%clk 0:03:03]} 12. O-O {[%clk 0:02:10]}  d6 {[%clk 0:03:03]} 13. Rd1 {[%clk 0:01:58]}  Be6 {[%clk 0:03:02]} 14. Qe4 {[%clk 0:01:58]}  d5 {[%clk 0:02:10]} 15. Rxd5 {[%clk 0:01:28]}  Bxd5 {[%clk 0:02:08]} 16. Bxd5 {[%clk 0:01:29]}  Rad8 {[%clk 0:02:05]} 17. Bd2 {[%clk 0:01:29]}  Nb4 {[%clk 0:01:43]} 18. Bc4 {[%clk 0:01:29]}  Bf6 {[%clk 0:01:41]} 19. Rb1 {[%clk 0:01:29]}  Rfe8 {[%clk 0:01:32]} 20. Qg4 {[%clk 0:01:12]}  Nd3 {[%clk 0:01:09]} 21. b3 {[%clk 0:01:05]}  Nb4 {[%clk 0:00:24]} 22. Bxb4 {[%clk 0:00:51]}  Qxb4 {[%clk 0:00:21]} 23. a4 {[%clk 0:00:44]}  a5 {[%clk 0:00:17]} 24. h4 {[%clk 0:00:44]}  Qc3 {[%clk 0:00:14]} 25. Qh5 {[%clk 0:00:34]}  g6 {[%clk 0:00:14]} 26. Qxc5 {[%clk 0:00:34]}  h5 {[%clk 0:00:10]} 27. Ng5 {[%clk 0:00:28]}  Re7 {[%clk 0:00:05]} 28. Rf1 {[%clk 0:00:20]}  Kg7 {[%clk 0:00:05]} 29. g3 {[%clk 0:00:20]}  Qe5 {[%clk 0:00:04]} 30. Qxe5 {[%clk 0:00:20]}  Bxe5 {[%clk 0:00:04]} 31. Nf3 {[%clk 0:00:21]}  Bc3 {[%clk 0:00:04]} 32. Rc1 {[%clk 0:00:21]}  Bb4 {[%clk 0:00:04]} 33. Kf1 {[%clk 0:00:21]}  Red7 {[%clk 0:00:04]} 34. Ke2 {[%clk 0:00:21]}  Ba3 {[%clk 0:00:04]} 35. Ra1 {[%clk 0:00:21]}  Bc5 {[%clk 0:00:05]} 36. Rb1 {[%clk 0:00:21]}  Re7 {[%clk 0:00:04]} 37. Ne1 {[%clk 0:00:21]}  f6 {[%clk 0:00:04]} 38. Nd3 {[%clk 0:00:21]}  Bd6 {[%clk 0:00:04]} 39. Rc1 {[%clk 0:00:21]}  Rde8 {[%clk 0:00:04]} 40. Bb5 {[%clk 0:00:20]}  Rd8 {[%clk 0:00:04]} 41. Rc6 {[%clk 0:00:20]}  Rc7 {[%clk 0:00:04]} 42. Ra6 {[%clk 0:00:20]}  Bb4 {[%clk 0:00:04]} 43. Bc4 {[%clk 0:00:19]}  Rcd7 {[%clk 0:00:02]} 44. Rb6 {[%clk 0:00:17]}  Bf8 {[%clk 0:00:01]} 45. Rb5 {[%clk 0:00:16]}  Bb4 {[%clk 0:00:02]} 46. Nxb4 {[%clk 0:00:16]}  axb4 {[%clk 0:00:03]} 47. Rxb4 {[%clk 0:00:17]}  Rd2+ {[%clk 0:00:03]} 48. Kf3 {[%clk 0:00:18]}  Ra2 {[%clk 0:00:04]} 49. Rb7+ {[%clk 0:00:17]}  Kh6 {[%clk 0:00:04]} 50. e4 {[%clk 0:00:13]}  Rdd2 {[%clk 0:00:04]} 51. Bg8 {[%clk 0:00:13]}  Rxf2+ {[%clk 0:00:04]} 52. Ke3 {[%clk 0:00:13]}  g5 {[%clk 0:00:04]} 53. Bh7 {[%clk 0:00:11]}  Rae2+ {[%clk 0:00:04]} 54. Kd4 {[%clk 0:00:11]}  Rd2+ {[%clk 0:00:04]} 55. Kc4 {[%clk 0:00:12]}  Rc2+ {[%clk 0:00:04]} 56. Kb4 {[%clk 0:00:12]}  gxh4 {[%clk 0:00:04]} 57. gxh4 {[%clk 0:00:13]}  Rcd2 {[%clk 0:00:01]} 58. Bf5 {[%clk 0:00:13]}  Rxf5 {[%clk 0:00:01]} 59. exf5 {[%clk 0:00:13]}  Rd4+ {[%clk 0:00:02]} 60. Ka3 {[%clk 0:00:14]}  Rxh4 {[%clk 0:00:01]} 61. a5 {[%clk 0:00:14]}  Rf4 {[%clk 0:00:01]} 62. a6 {[%clk 0:00:14]}  Rxf5 {[%clk 0:00:02]} 63. b4 {[%clk 0:00:15]}  Rf1 {[%clk 0:00:02]} 64. b5 {[%clk 0:00:15]}  Ra1+ {[%clk 0:00:03]} 65. Kb4 {[%clk 0:00:15]}  h4 {[%clk 0:00:03]} 66. Rb8 {[%clk 0:00:16]}  Kg7 {[%clk 0:00:03]} 67. Rc8 {[%clk 0:00:16]}  h3 {[%clk 0:00:03]} 68. Rc2 {[%clk 0:00:16]}  f5 {[%clk 0:00:01]} 69. Rh2 {[%clk 0:00:17]} 1-0


[Site "https://www.chess.com"]

[Event "Titled Tuesday Blitz March 14 Late 2023"]
[White "Skvortsov, Andrei"]
[Black "Kramnik, Vladimir"]
[WhiteFideId "24108600"]
[BlackFideId "4101588"]
[WhiteElo "2259"]
[BlackElo "2712"]
[Result "0-1"]
[Round "10"]
[TimeControl "180+2"]
[Date "2023.03.14"]
[WhiteClock "0:01:01"]
[BlackClock "0:01:19"]

1. e4 {[%clk 0:03:00]}  c5 {[%clk 0:02:59]} 2. d4 {[%clk 0:03:01]}  cxd4 {[%clk 0:02:59]} 3. Qxd4 {[%clk 0:03:02]}  Nc6 {[%clk 0:02:59]} 4. Qd3 {[%clk 0:03:03]}  Nf6 {[%clk 0:02:59]} 5. Nc3 {[%clk 0:03:03]}  g6 {[%clk 0:02:58]} 6. Nf3 {[%clk 0:03:03]}  Bg7 {[%clk 0:02:57]} 7. Be2 {[%clk 0:03:04]}  O-O {[%clk 0:02:57]} 8. O-O {[%clk 0:03:05]}  d6 {[%clk 0:02:56]} 9. Nd5 {[%clk 0:03:05]}  Bg4 {[%clk 0:02:53]} 10. c3 {[%clk 0:03:04]}  Nd7 {[%clk 0:02:51]} 11. Rd1 {[%clk 0:03:04]}  Rc8 {[%clk 0:02:46]} 12. Bg5 {[%clk 0:02:58]}  h6 {[%clk 0:02:43]} 13. Bh4 {[%clk 0:02:58]}  g5 {[%clk 0:02:28]} 14. Bg3 {[%clk 0:02:58]}  Nc5 {[%clk 0:02:26]} 15. Qc2 {[%clk 0:02:43]}  f5 {[%clk 0:02:21]} 16. exf5 {[%clk 0:02:39]}  Bxf5 {[%clk 0:02:20]} 17. Qd2 {[%clk 0:02:30]}  Kh8 {[%clk 0:02:10]} 18. Ne3 {[%clk 0:02:25]}  Bh7 {[%clk 0:02:06]} 19. h4 {[%clk 0:01:56]}  Ne4 {[%clk 0:02:03]} 20. Qe1 {[%clk 0:01:56]}  Nxg3 {[%clk 0:02:01]} 21. fxg3 {[%clk 0:01:56]}  Qb6 {[%clk 0:02:00]} 22. Qf2 {[%clk 0:01:53]}  Ne5 {[%clk 0:01:50]} 23. hxg5 {[%clk 0:01:33]}  hxg5 {[%clk 0:01:50]} 24. g4 {[%clk 0:01:32]}  Qxb2 {[%clk 0:01:35]} 25. Nd5 {[%clk 0:01:22]}  e6 {[%clk 0:01:29]} 26. Ne3 {[%clk 0:01:12]}  Rxc3 {[%clk 0:01:23]} 27. Kh1 {[%clk 0:01:01]}  Qb6 {[%clk 0:01:19]} 0-1


[Site "https://www.chess.com"]

[Event "Titled Tuesday Blitz March 14 Late 2023"]
[White "Ruiz Castillo, Joshua Daniel"]
[Black "Chigaev, Maksim"]
[WhiteFideId "4400704"]
[BlackFideId "4108116"]
[WhiteElo "2491"]
[BlackElo "2547"]
[Result "1-0"]
[Round "10"]
[TimeControl "180+2"]
[Date "2023.03.14"]
[WhiteClock "0:00:58"]
[BlackClock "0:00:02"]

1. b3 {[%clk 0:03:00]}  g6 {[%clk 0:02:58]} 2. Bb2 {[%clk 0:03:01]}  Nf6 {[%clk 0:02:59]} 3. Bxf6 {[%clk 0:03:01]}  exf6 {[%clk 0:02:59]} 4. c4 {[%clk 0:03:02]}  d5 {[%clk 0:02:59]} 5. cxd5 {[%clk 0:03:02]}  Qxd5 {[%clk 0:03:00]} 6. Nc3 {[%clk 0:03:03]}  Qa5 {[%clk 0:03:00]} 7. a3 {[%clk 0:03:03]}  c5 {[%clk 0:03:01]} 8. e3 {[%clk 0:03:04]}  Bg7 {[%clk 0:03:00]} 9. Nge2 {[%clk 0:03:00]}  O-O {[%clk 0:02:59]} 10. g3 {[%clk 0:03:01]}  Rd8 {[%clk 0:02:58]} 11. Bg2 {[%clk 0:03:01]}  Nc6 {[%clk 0:02:59]} 12. O-O {[%clk 0:03:01]}  f5 {[%clk 0:02:55]} 13. b4 {[%clk 0:03:00]}  cxb4 {[%clk 0:02:55]} 14. axb4 {[%clk 0:03:01]}  Qxb4 {[%clk 0:02:56]} 15. d4 {[%clk 0:03:01]}  Qe7 {[%clk 0:02:53]} 16. Qa4 {[%clk 0:02:56]}  Bd7 {[%clk 0:02:49]} 17. Qb3 {[%clk 0:02:55]}  Be8 {[%clk 0:02:47]} 18. Rfb1 {[%clk 0:02:55]}  b6 {[%clk 0:02:40]} 19. Nd5 {[%clk 0:02:53]}  Qd6 {[%clk 0:02:40]} 20. Nb4 {[%clk 0:02:52]}  Na5 {[%clk 0:02:27]} 21. Qd3 {[%clk 0:02:12]}  Rac8 {[%clk 0:02:19]} 22. Qa6 {[%clk 0:02:13]}  Qd7 {[%clk 0:01:08]} 23. Nd5 {[%clk 0:01:56]}  Kh8 {[%clk 0:01:08]} 24. Nec3 {[%clk 0:01:54]}  h5 {[%clk 0:00:20]} 25. h4 {[%clk 0:01:48]}  f4 {[%clk 0:00:19]} 26. exf4 {[%clk 0:01:25]}  Bxd4 {[%clk 0:00:15]} 27. Rd1 {[%clk 0:01:25]}  Nb3 {[%clk 0:00:10]} 28. Qa3 {[%clk 0:01:09]}  Rxc3 {[%clk 0:00:02]} 29. Qf8+ {[%clk 0:01:01]}  Kh7 {[%clk 0:00:03]} 30. Nxc3 {[%clk 0:01:02]}  Nxa1 {[%clk 0:00:02]} 31. Ne4 {[%clk 0:01:00]}  Qf5 {[%clk 0:00:02]} 32. Rxd4 {[%clk 0:00:58]} 1-0


[Site "https://www.chess.com"]

[Event "Titled Tuesday Blitz March 14 Late 2023"]
[White "Kamsky, Gata"]
[Black "Sakun, Volodymyr"]
[WhiteFideId "2000024"]
[BlackFideId "14114062"]
[WhiteElo "2666"]
[BlackElo "2331"]
[Result "1-0"]
[Round "10"]
[TimeControl "180+2"]
[Date "2023.03.14"]
[WhiteClock "0:01:22"]
[BlackClock "0:00:17"]

1. e4 {[%clk 0:03:00]}  e5 {[%clk 0:02:54]} 2. Nf3 {[%clk 0:03:00]}  Nc6 {[%clk 0:02:54]} 3. Bb5 {[%clk 0:03:00]}  Nf6 {[%clk 0:02:54]} 4. O-O {[%clk 0:02:58]}  Nxe4 {[%clk 0:02:53]} 5. d4 {[%clk 0:02:59]}  Nd6 {[%clk 0:02:53]} 6. Bxc6 {[%clk 0:02:59]}  dxc6 {[%clk 0:02:54]} 7. dxe5 {[%clk 0:02:59]}  Nf5 {[%clk 0:02:54]} 8. Qxd8+ {[%clk 0:02:59]}  Kxd8 {[%clk 0:02:55]} 9. Rd1+ {[%clk 0:02:59]}  Ke8 {[%clk 0:02:54]} 10. Nc3 {[%clk 0:03:00]}  Bb4 {[%clk 0:02:43]} 11. Ne2 {[%clk 0:02:55]}  h6 {[%clk 0:02:34]} 12. Nf4 {[%clk 0:02:48]}  Ne7 {[%clk 0:02:12]} 13. h3 {[%clk 0:02:44]}  Bf5 {[%clk 0:02:09]} 14. c3 {[%clk 0:02:34]}  Bc5 {[%clk 0:02:08]} 15. Nh5 {[%clk 0:02:33]}  Rg8 {[%clk 0:01:42]} 16. g4 {[%clk 0:02:19]}  Be4 {[%clk 0:01:33]} 17. Nd4 {[%clk 0:02:17]}  Nd5 {[%clk 0:01:16]} 18. c4 {[%clk 0:02:07]}  Nb4 {[%clk 0:01:13]} 19. Be3 {[%clk 0:01:47]}  Bxd4 {[%clk 0:00:57]} 20. Bxd4 {[%clk 0:01:39]}  Nc2 {[%clk 0:00:48]} 21. Rac1 {[%clk 0:01:38]}  Nb4 {[%clk 0:00:34]} 22. e6 {[%clk 0:01:24]}  fxe6 {[%clk 0:00:21]} 23. Bxg7 {[%clk 0:01:23]}  Kf7 {[%clk 0:00:17]} 24. Rd7+ {[%clk 0:01:22]} 1-0


[Site "https://www.chess.com"]

[Event "Titled Tuesday Blitz March 14 Late 2023"]
[White "Aldokhin, Ivan"]
[Black "Rustemov, Alexander"]
[WhiteFideId "24115720"]
[BlackFideId "4119002"]
[WhiteElo "2322"]
[BlackElo "2927"]
[Result "1-0"]
[Round "10"]
[TimeControl "180+2"]
[Date "2023.03.14"]
[WhiteClock "0:00:10"]
[BlackClock "0:00:25"]

1. e4 {[%clk 0:03:00]}  e6 {[%clk 0:02:57]} 2. d4 {[%clk 0:03:01]}  d5 {[%clk 0:02:58]} 3. Nc3 {[%clk 0:03:00]}  dxe4 {[%clk 0:02:58]} 4. Nxe4 {[%clk 0:02:59]}  Bd7 {[%clk 0:02:59]} 5. Bd3 {[%clk 0:02:56]}  Bc6 {[%clk 0:02:59]} 6. Nf3 {[%clk 0:02:52]}  Nd7 {[%clk 0:02:59]} 7. Qe2 {[%clk 0:02:48]}  Ngf6 {[%clk 0:03:00]} 8. Bg5 {[%clk 0:02:26]}  Be7 {[%clk 0:02:59]} 9. h4 {[%clk 0:02:20]}  h6 {[%clk 0:02:54]} 10. Bxf6 {[%clk 0:02:07]}  Nxf6 {[%clk 0:02:54]} 11. O-O-O {[%clk 0:01:59]}  Qd5 {[%clk 0:02:32]} 12. Ne5 {[%clk 0:01:17]}  Nxe4 {[%clk 0:02:25]} 13. Nxc6 {[%clk 0:01:15]}  Nc3 {[%clk 0:02:09]} 14. bxc3 {[%clk 0:01:07]}  Qxc6 {[%clk 0:02:09]} 15. Bb5 {[%clk 0:01:07]}  O-O {[%clk 0:01:35]} 16. Bxc6 {[%clk 0:01:06]}  bxc6 {[%clk 0:01:36]} 17. Qc4 {[%clk 0:01:02]}  Rab8 {[%clk 0:01:31]} 18. Kd2 {[%clk 0:01:01]}  c5 {[%clk 0:01:29]} 19. Ke2 {[%clk 0:00:57]}  Rb2 {[%clk 0:01:24]} 20. Rd2 {[%clk 0:00:47]}  Rfb8 {[%clk 0:01:23]} 21. dxc5 {[%clk 0:00:45]}  Bf6 {[%clk 0:01:19]} 22. g4 {[%clk 0:00:44]}  g6 {[%clk 0:01:16]} 23. f4 {[%clk 0:00:42]}  Bg7 {[%clk 0:01:12]} 24. h5 {[%clk 0:00:41]}  gxh5 {[%clk 0:01:10]} 25. gxh5 {[%clk 0:00:41]}  Kh8 {[%clk 0:01:10]} 26. Rg1 {[%clk 0:00:40]}  Re8 {[%clk 0:00:49]} 27. Kf3 {[%clk 0:00:30]}  Rf8 {[%clk 0:00:34]} 28. Qe4 {[%clk 0:00:18]}  Rb5 {[%clk 0:00:32]} 29. Qe3 {[%clk 0:00:11]}  c6 {[%clk 0:00:27]} 30. Rdg2 {[%clk 0:00:10]}  Bf6 {[%clk 0:00:26]} 31. f5 {[%clk 0:00:10]}  Bg5 {[%clk 0:00:25]} 32. Rxg5 {[%clk 0:00:10]} 1-0


[Site "https://www.chess.com"]

[Event "Titled Tuesday Blitz March 14 Late 2023"]
[White "Yeletsky, Ivan"]
[Black "Almeida Quintana, Omar"]
[WhiteFideId "24180327"]
[BlackFideId "3503313"]
[WhiteElo "2414"]
[BlackElo "2530"]
[Result "0-1"]
[Round "10"]
[TimeControl "180+2"]
[Date "2023.03.14"]
[WhiteClock "0:00:04"]
[BlackClock "0:00:29"]

1. e4 {[%clk 0:02:57]}  d6 {[%clk 0:03:00]} 2. d4 {[%clk 0:02:57]}  Nf6 {[%clk 0:03:00]} 3. f3 {[%clk 0:02:58]}  c6 {[%clk 0:02:58]} 4. Be3 {[%clk 0:02:57]}  e5 {[%clk 0:02:57]} 5. dxe5 {[%clk 0:02:56]}  dxe5 {[%clk 0:02:57]} 6. Qxd8+ {[%clk 0:02:57]}  Kxd8 {[%clk 0:02:57]} 7. Bc4 {[%clk 0:02:58]}  Ke8 {[%clk 0:02:56]} 8. a4 {[%clk 0:02:58]}  Nbd7 {[%clk 0:02:54]} 9. Nd2 {[%clk 0:02:58]}  Bc5 {[%clk 0:02:51]} 10. Kf2 {[%clk 0:02:58]}  Bxe3+ {[%clk 0:02:49]} 11. Kxe3 {[%clk 0:02:58]}  a5 {[%clk 0:02:33]} 12. Ne2 {[%clk 0:02:58]}  Nc5 {[%clk 0:02:31]} 13. Nc1 {[%clk 0:02:58]}  Be6 {[%clk 0:02:30]} 14. Bxe6 {[%clk 0:02:54]}  Nxe6 {[%clk 0:02:28]} 15. Nd3 {[%clk 0:02:53]}  Nd7 {[%clk 0:02:26]} 16. Nc4 {[%clk 0:02:53]}  f6 {[%clk 0:02:25]} 17. Nd6+ {[%clk 0:02:51]}  Ke7 {[%clk 0:02:24]} 18. Nf5+ {[%clk 0:02:51]}  Kd8 {[%clk 0:02:20]} 19. Rhd1 {[%clk 0:02:47]}  Kc7 {[%clk 0:02:19]} 20. c3 {[%clk 0:02:41]}  Nb6 {[%clk 0:02:11]} 21. b3 {[%clk 0:02:38]}  Rad8 {[%clk 0:02:09]} 22. g3 {[%clk 0:02:35]}  Rd7 {[%clk 0:02:04]} 23. Ke2 {[%clk 0:02:24]}  Rhd8 {[%clk 0:02:01]} 24. Ne3 {[%clk 0:02:23]}  h5 {[%clk 0:01:57]} 25. f4 {[%clk 0:02:08]}  exf4 {[%clk 0:01:46]} 26. Nxf4 {[%clk 0:02:07]}  Nxf4+ {[%clk 0:01:27]} 27. gxf4 {[%clk 0:02:07]}  Rxd1 {[%clk 0:01:27]} 28. Nxd1 {[%clk 0:02:03]}  Re8 {[%clk 0:01:23]} 29. Kf3 {[%clk 0:01:40]}  Nd7 {[%clk 0:01:12]} 30. b4 {[%clk 0:01:35]}  g5 {[%clk 0:01:12]} 31. Ne3 {[%clk 0:01:31]}  g4+ {[%clk 0:01:11]} 32. Kg3 {[%clk 0:01:29]}  axb4 {[%clk 0:01:06]} 33. e5 {[%clk 0:01:21]}  bxc3 {[%clk 0:01:02]} 34. Kh4 {[%clk 0:01:14]}  fxe5 {[%clk 0:01:02]} 35. f5 {[%clk 0:01:15]}  Nf6 {[%clk 0:01:00]} 36. Rc1 {[%clk 0:01:09]}  Nd5 {[%clk 0:00:56]} 37. Nd1 {[%clk 0:00:54]}  e4 {[%clk 0:00:48]} 38. Nxc3 {[%clk 0:00:53]}  Nxc3 {[%clk 0:00:46]} 39. Rxc3 {[%clk 0:00:54]}  e3 {[%clk 0:00:45]} 40. Rc1 {[%clk 0:00:53]}  e2 {[%clk 0:00:43]} 41. Re1 {[%clk 0:00:53]}  Kd6 {[%clk 0:00:43]} 42. Kxh5 {[%clk 0:00:52]}  Kd5 {[%clk 0:00:43]} 43. f6 {[%clk 0:00:44]}  Kd4 {[%clk 0:00:44]} 44. f7 {[%clk 0:00:25]}  Rh8+ {[%clk 0:00:39]} 45. Kxg4 {[%clk 0:00:07]}  Ke3 {[%clk 0:00:39]} 46. Kg5 {[%clk 0:00:06]}  Kd2 {[%clk 0:00:34]} 47. Ra1 {[%clk 0:00:06]}  e1=Q {[%clk 0:00:33]} 48. Rxe1 {[%clk 0:00:06]}  Kxe1 {[%clk 0:00:34]} 49. h4 {[%clk 0:00:07]}  c5 {[%clk 0:00:34]} 50. Kg6 {[%clk 0:00:04]}  c4 {[%clk 0:00:34]} 51. Kg7 {[%clk 0:00:05]}  Rc8 {[%clk 0:00:34]} 52. h5 {[%clk 0:00:04]}  c3 {[%clk 0:00:34]} 53. h6 {[%clk 0:00:05]}  c2 {[%clk 0:00:35]} 54. f8=Q {[%clk 0:00:02]}  Rxf8 {[%clk 0:00:34]} 55. Kxf8 {[%clk 0:00:03]}  c1=Q {[%clk 0:00:34]} 56. h7 {[%clk 0:00:04]}  Qa1 {[%clk 0:00:31]} 57. Kg8 {[%clk 0:00:04]}  Qa2+ {[%clk 0:00:31]} 58. Kg7 {[%clk 0:00:04]}  Qxa4 {[%clk 0:00:29]} 0-1


[Site "https://www.chess.com"]

[Event "Titled Tuesday Blitz March 14 Late 2023"]
[White "Domingo Nunez, Ruben"]
[Black "Galchenko, Matvey"]
[WhiteFideId "22245570"]
[BlackFideId "24175480"]
[WhiteElo "2404"]
[BlackElo "2404"]
[Result "1-0"]
[Round "10"]
[TimeControl "180+2"]
[Date "2023.03.14"]
[WhiteClock "0:00:38"]
[BlackClock "0:00:08"]

1. b3 {[%clk 0:03:00]}  e5 {[%clk 0:02:52]} 2. Bb2 {[%clk 0:03:01]}  d5 {[%clk 0:02:53]} 3. e3 {[%clk 0:03:02]}  Nc6 {[%clk 0:02:53]} 4. Nf3 {[%clk 0:03:02]}  e4 {[%clk 0:02:44]} 5. Ne5 {[%clk 0:03:02]}  Nxe5 {[%clk 0:02:42]} 6. Bxe5 {[%clk 0:03:03]}  Nf6 {[%clk 0:02:43]} 7. c4 {[%clk 0:03:03]}  c6 {[%clk 0:02:36]} 8. Be2 {[%clk 0:03:00]}  Bd6 {[%clk 0:02:35]} 9. Bb2 {[%clk 0:02:56]}  O-O {[%clk 0:02:31]} 10. Nc3 {[%clk 0:02:52]}  a6 {[%clk 0:02:26]} 11. Qc2 {[%clk 0:02:50]}  Qe7 {[%clk 0:02:25]} 12. Na4 {[%clk 0:02:48]}  Be6 {[%clk 0:02:22]} 13. c5 {[%clk 0:02:47]}  Bc7 {[%clk 0:02:20]} 14. Bd4 {[%clk 0:02:47]}  Nd7 {[%clk 0:02:13]} 15. Qc3 {[%clk 0:02:48]}  f6 {[%clk 0:02:12]} 16. f4 {[%clk 0:02:44]}  exf3 {[%clk 0:01:43]} 17. gxf3 {[%clk 0:02:45]}  Be5 {[%clk 0:01:31]} 18. O-O-O {[%clk 0:02:37]}  Bf5 {[%clk 0:01:23]} 19. Bd3 {[%clk 0:02:33]}  Bxd4 {[%clk 0:01:19]} 20. exd4 {[%clk 0:02:28]}  Bxd3 {[%clk 0:01:13]} 21. Qxd3 {[%clk 0:02:29]}  Qf7 {[%clk 0:01:05]} 22. Rhg1 {[%clk 0:02:29]}  Rae8 {[%clk 0:01:05]} 23. Rg2 {[%clk 0:02:27]}  Re7 {[%clk 0:00:55]} 24. Rdg1 {[%clk 0:02:27]}  Qe6 {[%clk 0:00:55]} 25. Kc2 {[%clk 0:02:23]}  Qh3 {[%clk 0:00:53]} 26. Nc3 {[%clk 0:02:13]}  a5 {[%clk 0:00:50]} 27. Nd1 {[%clk 0:02:12]}  Kh8 {[%clk 0:00:43]} 28. Ne3 {[%clk 0:02:12]}  g6 {[%clk 0:00:35]} 29. Rg3 {[%clk 0:01:51]}  Qh5 {[%clk 0:00:34]} 30. Qf1 {[%clk 0:01:46]}  Qh6 {[%clk 0:00:25]} 31. Rh3 {[%clk 0:01:34]}  Qg7 {[%clk 0:00:17]} 32. Nf5 {[%clk 0:01:35]}  gxf5 {[%clk 0:00:18]} 33. Rxg7 {[%clk 0:01:34]}  Rxg7 {[%clk 0:00:19]} 34. Rh5 {[%clk 0:01:35]}  Rg6 {[%clk 0:00:15]} 35. Qh3 {[%clk 0:01:33]}  Rf7 {[%clk 0:00:16]} 36. Qxf5 {[%clk 0:01:33]}  Nf8 {[%clk 0:00:16]} 37. f4 {[%clk 0:01:27]}  Kg7 {[%clk 0:00:16]} 38. Rh3 {[%clk 0:01:26]}  Re7 {[%clk 0:00:16]} 39. Re3 {[%clk 0:01:25]}  Rf7 {[%clk 0:00:14]} 40. h4 {[%clk 0:01:24]}  Rg1 {[%clk 0:00:13]} 41. h5 {[%clk 0:01:22]}  Kg8 {[%clk 0:00:12]} 42. Qh3 {[%clk 0:01:19]}  Rfg7 {[%clk 0:00:10]} 43. Qh4 {[%clk 0:01:20]}  Kf7 {[%clk 0:00:10]} 44. Qh3 {[%clk 0:01:18]}  R7g4 {[%clk 0:00:10]} 45. Qf3 {[%clk 0:01:13]}  Ne6 {[%clk 0:00:09]} 46. Rxe6 {[%clk 0:00:55]}  Kxe6 {[%clk 0:00:09]} 47. f5+ {[%clk 0:00:56]}  Kf7 {[%clk 0:00:08]} 48. Qe3 {[%clk 0:00:56]}  R1g3 {[%clk 0:00:03]} 49. Qe6+ {[%clk 0:00:56]}  Kg7 {[%clk 0:00:03]} 50. Qe7+ {[%clk 0:00:56]}  Kh6 {[%clk 0:00:04]} 51. Qxb7 {[%clk 0:00:52]}  Rxd4 {[%clk 0:00:04]} 52. Qxc6 {[%clk 0:00:53]}  Kg5 {[%clk 0:00:04]} 53. Qe8 {[%clk 0:00:47]}  Rgd3 {[%clk 0:00:04]} 54. Qe2 {[%clk 0:00:46]}  Rg3 {[%clk 0:00:01]} 55. c6 {[%clk 0:00:45]}  Re4 {[%clk 0:00:01]} 56. Qxe4 {[%clk 0:00:43]}  dxe4 {[%clk 0:00:02]} 57. c7 {[%clk 0:00:43]}  Kxf5 {[%clk 0:00:01]} 58. c8=Q+ {[%clk 0:00:43]}  Kf4 {[%clk 0:00:02]} 59. Qc7+ {[%clk 0:00:44]}  Kf3 {[%clk 0:00:03]} 60. Qxh7 {[%clk 0:00:42]}  Kf4 {[%clk 0:00:03]} 61. Qc7+ {[%clk 0:00:42]}  Kf3 {[%clk 0:00:03]} 62. Qc6 {[%clk 0:00:41]}  f5 {[%clk 0:00:04]} 63. h6 {[%clk 0:00:40]}  Rh3 {[%clk 0:00:04]} 64. Qg6 {[%clk 0:00:38]}  f4 {[%clk 0:00:05]} 65. h7 {[%clk 0:00:39]}  e3 {[%clk 0:00:06]} 66. dxe3 {[%clk 0:00:37]}  Rh2+ {[%clk 0:00:06]} 67. Kd3 {[%clk 0:00:37]}  fxe3 {[%clk 0:00:07]} 68. Qf5+ {[%clk 0:00:37]}  Kg3 {[%clk 0:00:07]} 69. Qe5+ {[%clk 0:00:37]}  Kg2 {[%clk 0:00:07]} 70. Qxh2+ {[%clk 0:00:38]}  Kxh2 {[%clk 0:00:08]} 71. h8=Q+ {[%clk 0:00:38]} 1-0


[Site "https://www.chess.com"]

[Event "Titled Tuesday Blitz March 14 Late 2023"]
[White "Averjanov, Alexey"]
[Black "Gubajdullin, Alexei"]
[WhiteFideId "14109867"]
[BlackFideId "4141202"]
[WhiteElo "2730"]
[BlackElo "2267"]
[Result "1/2-1/2"]
[Round "10"]
[TimeControl "180+2"]
[Date "2023.03.14"]
[WhiteClock "0:00:38"]
[BlackClock "0:00:08"]

1. d4 {[%clk 0:03:00]}  Nf6 {[%clk 0:02:59]} 2. c4 {[%clk 0:03:01]}  g6 {[%clk 0:02:59]} 3. Nc3 {[%clk 0:03:00]}  Bg7 {[%clk 0:02:59]} 4. e4 {[%clk 0:03:00]}  O-O {[%clk 0:02:59]} 5. Be2 {[%clk 0:03:00]}  d6 {[%clk 0:02:59]} 6. Nf3 {[%clk 0:03:01]}  Na6 {[%clk 0:02:59]} 7. O-O {[%clk 0:03:00]}  e5 {[%clk 0:02:59]} 8. Re1 {[%clk 0:02:54]}  c6 {[%clk 0:02:54]} 9. Bg5 {[%clk 0:02:49]}  Qe8 {[%clk 0:02:49]} 10. d5 {[%clk 0:02:47]}  c5 {[%clk 0:02:42]} 11. Nd2 {[%clk 0:02:45]}  h6 {[%clk 0:02:41]} 12. Be3 {[%clk 0:02:45]}  Bd7 {[%clk 0:02:40]} 13. a3 {[%clk 0:02:41]}  Nh7 {[%clk 0:02:36]} 14. b4 {[%clk 0:02:33]}  b6 {[%clk 0:02:35]} 15. Rb1 {[%clk 0:02:28]}  f5 {[%clk 0:02:33]} 16. f3 {[%clk 0:02:28]}  f4 {[%clk 0:02:32]} 17. Bf2 {[%clk 0:02:28]}  g5 {[%clk 0:02:31]} 18. Nb5 {[%clk 0:02:22]}  Qg6 {[%clk 0:02:29]} 19. Qa4 {[%clk 0:02:06]}  Nc7 {[%clk 0:02:28]} 20. bxc5 {[%clk 0:02:03]}  dxc5 {[%clk 0:02:04]} 21. Qc2 {[%clk 0:01:54]}  Ne8 {[%clk 0:02:03]} 22. a4 {[%clk 0:01:51]}  h5 {[%clk 0:02:00]} 23. a5 {[%clk 0:01:48]}  g4 {[%clk 0:01:59]} 24. Bh4 {[%clk 0:01:40]}  Bf6 {[%clk 0:01:51]} 25. Bxf6 {[%clk 0:01:40]}  Rxf6 {[%clk 0:01:50]} 26. axb6 {[%clk 0:01:37]}  axb6 {[%clk 0:01:50]} 27. Ra1 {[%clk 0:01:35]}  Rxa1 {[%clk 0:01:42]} 28. Rxa1 {[%clk 0:01:36]}  Ng5 {[%clk 0:01:32]} 29. Kh1 {[%clk 0:01:33]}  gxf3 {[%clk 0:01:13]} 30. Bxf3 {[%clk 0:01:30]}  Bxb5 {[%clk 0:01:02]} 31. cxb5 {[%clk 0:01:29]}  Nd6 {[%clk 0:01:01]} 32. Ra8+ {[%clk 0:01:24]}  Rf8 {[%clk 0:01:00]} 33. Qa4 {[%clk 0:01:20]}  h4 {[%clk 0:00:29]} 34. h3 {[%clk 0:01:18]}  Nxf3 {[%clk 0:00:28]} 35. Rxf8+ {[%clk 0:01:15]}  Kxf8 {[%clk 0:00:28]} 36. Nxf3 {[%clk 0:01:13]}  Nxe4 {[%clk 0:00:20]} 37. Qa8+ {[%clk 0:01:05]}  Kg7 {[%clk 0:00:20]} 38. Qb7+ {[%clk 0:01:02]}  Kh6 {[%clk 0:00:18]} 39. Nxe5 {[%clk 0:00:57]}  Nf2+ {[%clk 0:00:18]} 40. Kg1 {[%clk 0:00:52]}  Nxh3+ {[%clk 0:00:17]} 41. Kh1 {[%clk 0:00:46]}  Nf2+ {[%clk 0:00:10]} 42. Kg1 {[%clk 0:00:43]}  Nh3+ {[%clk 0:00:10]} 43. Kh2 {[%clk 0:00:38]}  Qg3+ {[%clk 0:00:10]} 44. Kh1 {[%clk 0:00:38]}  Qe1+ {[%clk 0:00:10]} 45. Kh2 {[%clk 0:00:37]}  Qg3+ {[%clk 0:00:09]} 46. Kh1 {[%clk 0:00:38]}  Qe1+ {[%clk 0:00:09]} 47. Kh2 {[%clk 0:00:38]}  Qg3+ {[%clk 0:00:08]} 1/2-1/2


[Site "https://www.chess.com"]